fUST/lending_fUST_20260623
["ID","MTS","AMOUNT","RATE_DAILY","PERIOD"]
[426096172,1782145845000,-500.0,0.000219,7]
[426096170,1782145845000,-500.0,0.000219,7]
[426096168,1782145845000,-500.0,0.000219,7]
[426096152,1782145845000,-500.0,0.000219,7]
[426096159,1782145845000,-500.0,0.000219,7]
[426096155,1782145845000,-500.0,0.000219,7]
[426096164,1782145845000,-500.0,0.000219,7]
[426096166,1782145845000,-500.0,0.000219,7]
[426096150,1782145845000,-500.0,0.000219,7]
[426096153,1782145845000,-500.0,0.000219,7]
[426096157,1782145845000,-500.0,0.000219,7]
[426096176,1782145845000,-500.0,0.000219,7]
[426096195,1782145845000,-1000.0,0.00021917,2]
[426096180,1782145845000,-500.0,0.000219,7]
[426096174,1782145845000,-500.0,0.000219,7]
[426096182,1782145845000,-500.0,0.000219,7]
[426096193,1782145845000,-1000.0,0.00021917,2]
[426096189,1782145845000,-500.0,0.000219,7]
[426096191,1782145845000,-2341.94403745,0.000219,2]
[426096188,1782145845000,-500.0,0.000219,7]
[426096184,1782145845000,-500.0,0.000219,7]
[426096197,1782145845000,-1000.0,0.00021917,2]
[426096185,1782145845000,-500.0,0.000219,7]
[426096199,1782145845000,-1000.0,0.00021917,2]
[426096148,1782145845000,-500.0,0.000219,7]
[426096178,1782145845000,-500.0,0.000219,7]
[426096145,1782145845000,-500.0,0.000219,7]
[426096122,1782145845000,-1000.0,0.00021695,2]
[426096139,1782145845000,-518.757764,0.00021859,2]
[426096207,1782145845000,-1000.0,0.00021917,2]
[426096093,1782145845000,-157.22281962,0.00021428,2]
[426096097,1782145845000,-192.492574,0.00021477,2]
[426096095,1782145845000,-158.0,0.00021466,30]
[426096099,1782145845000,-2341.94403745,0.000215,2]
[426096101,1782145845000,-509.63183975,0.00021517,2]
[426096103,1782145845000,-500.0,0.00021553,2]
[426096105,1782145845000,-2130.77,0.00021643,2]
[426096116,1782145845000,-500.0,0.00021687,2]
[426096106,1782145845000,-500.0,0.00021687,2]
[426096108,1782145845000,-500.0,0.00021687,2]
[426096120,1782145845000,-1000.0,0.00021695,2]
[426096146,1782145845000,-500.0,0.000219,7]
[426096114,1782145845000,-500.0,0.00021687,2]
[426096110,1782145845000,-500.0,0.00021687,2]
[426096118,1782145845000,-500.0,0.00021687,2]
[426096125,1782145845000,-1000.0,0.00021695,2]
[426096133,1782145845000,-2341.94403745,0.000217,2]
[426096131,1782145845000,-1000.0,0.00021695,2]
[426096127,1782145845000,-1000.0,0.00021695,2]
[426096124,1782145845000,-1000.0,0.00021695,2]
[426096129,1782145845000,-1000.0,0.00021695,2]
[426096143,1782145845000,-500.0,0.000219,7]
[426096141,1782145845000,-500.0,0.000219,7]
[426096135,1782145845000,-500.0,0.00021827,2]
[426096137,1782145845000,-151.0,0.00021831,2]
[426096112,1782145845000,-500.0,0.00021687,2]
[426096203,1782145845000,-1000.0,0.00021917,2]
[426096161,1782145845000,-500.0,0.000219,7]
[426096209,1782145845000,-2130.77,0.00021917,2]
[426096277,1782145845000,-155.0,0.00022932,120]
[426096278,1782145845000,-154.0,0.00022932,120]
[426096280,1782145845000,-165.0,0.00022932,120]
[426096283,1782145845000,-169.0,0.00022932,120]
[426096285,1782145845000,-158.0,0.00022932,120]
[426096287,1782145845000,-158.0,0.00022932,120]
[426096289,1782145845000,-1142.68470561,0.00022962,2]
[426096291,1782145845000,-453.0,0.00022962,7]
[426096295,1782145845000,-156.0,0.00022962,120]
[426096293,1782145845000,-322.0097945,0.00022962,2]
[426096299,1782145845000,-171.0,0.00023045,120]
[426096297,1782145845000,-206.0,0.00023014,7]
[426096272,1782145845000,-909.0,0.0002293,30]
[426096305,1782145845000,-500.0,0.00023057,2]
[426096307,1782145845000,-1000.0,0.00023057,2]
[426096303,1782145845000,-500.0,0.00023055,8]
[426096309,1782145845000,-157.22281962,0.00023072,2]
[426096315,1782145845000,-1000.0,0.00023331,2]
[426096311,1782145845000,-864.0,0.00023273,10]
[426096313,1782145845000,-500.0,0.00023331,2]
[426096319,1782145845000,-101108.47745672,0.00023444,2]
[426096317,1782145845000,-551.89834416,0.00023444,2]
[426096322,1782145845000,-136802.31738837,0.00023444,2]
[426096324,1782145845000,-129344.69653734,0.00023444,2]
[426096328,1782145845000,-117046.03263345,0.00023444,2]
[426096201,1782145845000,-1000.0,0.00021917,2]
[426096301,1782145845000,-500.0,0.00023055,8]
[426096270,1782145845000,-151.0,0.000228,10]
[426096275,1782145845000,-155.0,0.00022931,120]
[426096262,1782145845000,-2130.88456516,0.00022739,2]
[426096213,1782145845000,-500.0,0.00021961,2]
[426096205,1782145845000,-1000.0,0.00021917,2]
[426096211,1782145845000,-500.0,0.00021961,2]
[426096217,1782145845000,-584.09,0.00021961,2]
[426096215,1782145845000,-1000.0,0.00021961,2]
[426096224,1782145845000,-157.22281962,0.00021976,2]
[426096227,1782145845000,-206.0,0.00022,2]
[426096233,1782145845000,-244.27048891,0.00022004,2]
[426096231,1782145845000,-520.38241763,0.00022004,2]
[426096226,1782145845000,-374.13609303,0.00021998,2]
[426096229,1782145845000,-289.10134313,0.00022004,2]
[426096268,1782145845000,-1000.0,0.00022783,2]
[426096244,1782145845000,-500.0,0.00022235,2]
[426096240,1782145845000,-206.0,0.00022192,7]
[426096235,1782145845000,-439.68688004,0.00022004,2]
[426096237,1782145845000,-2130.77,0.00022191,2]
[426096266,1782145845000,-500.0,0.00022783,2]
[426096264,1782145845000,-181.82043,0.00022778,14]
[426096242,1782145845000,-643.24,0.00022235,2]
[426096256,1782145845000,-1000.0,0.00022509,2]
[426096250,1782145845000,-2130.77,0.00022465,2]
[426096260,1782145845000,-925.124298,0.00022695,2]
[426096326,1782145845000,-35874.3921675,0.00023444,2]
[426096254,1782145845000,-500.0,0.00022509,2]
[426096252,1782145845000,-158.0,0.00022466,30]
[426096248,1782145845000,-157.19,0.00022434,2]
[426096246,1782145845000,-1000.0,0.00022235,2]
[426096258,1782145845000,-157.22281962,0.00022524,2]
[426096394,1782145846000,-184.10748,0.00021253,2]
[426096382,1782145846000,-500.0,0.00016438,2]
[426096386,1782145846000,-500.0,0.00016986,2]
[426096384,1782145846000,-500.0,0.00016712,2]
[426096390,1782145846000,-500.0,0.00017534,2]
[426096392,1782145846000,-500.0,0.00017808,2]
[426096397,1782145846000,-1000.0,0.000228,2]
[426096396,1782145846000,-1227.484554,0.000223,2]
[426096427,1782145846000,-2533.82817532,0.00023444,2]
[426096399,1782145846000,-161.0,0.00022962,120]
[426096401,1782145846000,-2015.40796599,0.00023444,2]
[426096419,1782145846000,-958.0,0.00020647,2]
[426096421,1782145846000,-820.651535,0.00023444,2]
[426096388,1782145846000,-500.0,0.0001726,2]
[426101367,1782145891000,-2312.52274429,0.00016272,2]
[426106666,1782145941000,100000.0,0.00022962,30]
[426108161,1782146126000,100000.0,0.00022962,30]
[426108165,1782146261000,2687.47725571,0.00011,13]
[426108166,1782146310000,100000.0,0.00022959,30]
[426108167,1782146495000,100000.0,0.00022959,30]
[426108174,1782146680000,100000.0,0.00022959,30]
[426108178,1782146864000,100000.0,0.00022959,30]
[426108189,1782147033000,-151.0,0.00010526,2]
[426108191,1782147033000,-256.14937987,0.00013908,2]
[426108190,1782147033000,-151.0,0.00010851,2]
[426108194,1782147033000,-758.9055952,0.00014828,2]
[426108193,1782147033000,-433.45811007,0.00014828,2]
[426108192,1782147033000,-591.37303231,0.00014828,2]
[426108335,1782147039000,-500.0,0.00016431,2]
[426108337,1782147039000,-500.0,0.00016431,2]
[426108329,1782147039000,-500.0,0.00016431,2]
[426108327,1782147039000,-500.0,0.00016431,2]
[426108331,1782147039000,-500.0,0.00016431,2]
[426108325,1782147039000,-500.0,0.00016431,2]
[426108324,1782147039000,-500.0,0.00016431,2]
[426108314,1782147039000,-500.0,0.00016431,2]
[426108310,1782147039000,-244.2324901,0.00015237,2]
[426108308,1782147039000,-1000.0,0.00015137,2]
[426108306,1782147039000,-1774.76115952,0.00014828,2]
[426108322,1782147039000,-500.0,0.00016431,2]
[426108318,1782147039000,-500.0,0.00016431,2]
[426108320,1782147039000,-500.0,0.00016431,2]
[426108316,1782147039000,-425.81278209,0.00016431,2]
[426108339,1782147039000,-500.0,0.00016431,2]
[426108312,1782147039000,-474.49233746,0.00016431,2]
[426108333,1782147039000,-500.0,0.00016431,2]
[426108356,1782147039000,-500.0,0.00016431,2]
[426108345,1782147039000,-500.0,0.00016431,2]
[426108375,1782147039000,-553.34591255,0.00016431,2]
[426108373,1782147039000,-500.0,0.00016431,2]
[426108371,1782147039000,-500.0,0.00016431,2]
[426108369,1782147039000,-500.0,0.00016431,2]
[426108367,1782147039000,-500.0,0.00016431,2]
[426108365,1782147039000,-500.0,0.00016431,2]
[426108341,1782147039000,-500.0,0.00016431,2]
[426108360,1782147039000,-500.0,0.00016431,2]
[426108361,1782147039000,-500.0,0.00016431,2]
[426108354,1782147039000,-500.0,0.00016431,2]
[426108358,1782147039000,-500.0,0.00016431,2]
[426108352,1782147039000,-500.0,0.00016431,2]
[426108350,1782147039000,-500.0,0.00016431,2]
[426108348,1782147039000,-583.77280453,0.00016431,2]
[426108347,1782147039000,-500.0,0.00016431,2]
[426108343,1782147039000,-500.0,0.00016431,2]
[426108363,1782147039000,-500.0,0.00016431,2]
[426108386,1782147040000,-500.0,0.00016436,2]
[426108382,1782147040000,-500.0,0.00016436,2]
[426108377,1782147040000,-500.0,0.00016434,2]
[426108389,1782147040000,-450.0,0.00016437,2]
[426108398,1782147040000,-1011.78539247,0.00016437,2]
[426108392,1782147040000,-500.0,0.00016437,2]
[426108379,1782147040000,-500.0,0.00016434,2]
[426108400,1782147040000,-1011.78539247,0.00016437,2]
[426108402,1782147040000,-875.68097769,0.00016437,2]
[426108395,1782147040000,-226.54666175,0.00016437,2]
[426108554,1782147041000,-536.98614067,0.00016437,2]
[426108528,1782147041000,-1011.78539247,0.00016437,2]
[426108530,1782147041000,-1011.78539247,0.00016437,2]
[426108526,1782147041000,-136.10441478,0.00016437,2]
[426108534,1782147041000,-1011.78539247,0.00016437,2]
[426108538,1782147041000,-521.39426851,0.00016437,2]
[426108536,1782147041000,-1011.78539247,0.00016437,2]
[426108532,1782147041000,-1011.78539247,0.00016437,2]
[426108546,1782147041000,-1011.78539247,0.00016437,2]
[426108542,1782147041000,-1011.78539247,0.00016437,2]
[426108548,1782147041000,-716.94262417,0.00016437,2]
[426108552,1782147041000,-1011.78539247,0.00016437,2]
[426108550,1782147041000,-294.8427683,0.00016437,2]
[426108544,1782147041000,-1011.78539247,0.00016437,2]
[426108540,1782147041000,-490.39112396,0.00016437,2]
[426108855,1782147043000,-1062.37466208,0.00016437,2]
[426108857,1782147043000,-1062.37466208,0.00016437,2]
[426108851,1782147043000,-287.4586506,0.00016437,2]
[426108859,1782147043000,-1062.37466208,0.00016437,2]
[426108826,1782147043000,-1011.78539247,0.00016437,2]
[426108823,1782147043000,-1011.78539247,0.00016437,2]
[426108821,1782147043000,-474.7992518,0.00016437,2]
[426108861,1782147043000,-1062.37466208,0.00016437,2]
[426108828,1782147043000,-724.32674187,0.00016437,2]
[426108853,1782147043000,-1011.78539247,0.00016437,2]
[426108875,1782147043000,-500.0,0.00016438,2]
[426108873,1782147043000,-500.0,0.00016438,2]
[426108869,1782147043000,-1062.37466208,0.00016437,2]
[426108863,1782147043000,-1062.37466208,0.00016437,2]
[426108867,1782147043000,-1062.37466208,0.00016437,2]
[426108871,1782147043000,-1232.354608,0.00016437,2]
[426108884,1782147043000,-500.0,0.00016438,2]
[426108865,1782147043000,-1062.37466208,0.00016437,2]
[426108880,1782147043000,-488.72013598,0.00016438,2]
[426108877,1782147043000,-500.0,0.00016438,2]
[426108879,1782147043000,-500.0,0.00016438,2]
[426108882,1782147043000,-516.63103682,0.00016438,2]
[426108886,1782147044000,-117.68345064,0.00016438,2]
[426109238,1782147046000,-500.0,0.00016438,2]
[426109228,1782147046000,-401.87214726,0.00016438,2]
[426109230,1782147046000,-324.14262055,0.00016438,2]
[426109232,1782147046000,-500.0,0.00016438,2]
[426109234,1782147046000,-500.0,0.00016438,2]
[426109236,1782147046000,-500.0,0.00016438,2]
[426109242,1782147046000,-500.0,0.00016438,2]
[426109245,1782147046000,-500.0,0.00016438,2]
[426109251,1782147046000,-500.0,0.00016438,2]
[426109240,1782147046000,-500.0,0.00016438,2]
[426109247,1782147046000,-500.0,0.00016438,2]
[426109249,1782147046000,-500.0,0.00016438,2]
[426109257,1782147046000,-500.0,0.00016438,2]
[426109253,1782147046000,-500.0,0.00016438,2]
[426109261,1782147046000,-500.0,0.00016438,2]
[426109259,1782147046000,-500.0,0.00016438,2]
[426109255,1782147046000,-500.0,0.00016438,2]
[426109244,1782147046000,-500.0,0.00016438,2]
[426109344,1782147047000,-500.0,0.00016438,2]
[426109342,1782147047000,-500.0,0.00016438,2]
[426109340,1782147047000,-500.0,0.00016438,2]
[426109326,1782147047000,-500.0,0.00016438,2]
[426109338,1782147047000,-500.0,0.00016438,2]
[426109334,1782147047000,-500.0,0.00016438,2]
[426109322,1782147047000,-527.60497691,0.00016438,2]
[426109324,1782147047000,-500.0,0.00016438,2]
[426109348,1782147047000,-500.0,0.00016438,2]
[426109336,1782147047000,-500.0,0.00016438,2]
[426109330,1782147047000,-500.0,0.00016438,2]
[426109328,1782147047000,-500.0,0.00016438,2]
[426109346,1782147047000,-500.0,0.00016438,2]
[426109354,1782147047000,-500.0,0.00016438,2]
[426109362,1782147047000,-500.0,0.00016438,2]
[426109350,1782147047000,-500.0,0.00016438,2]
[426109364,1782147047000,-500.0,0.00016438,2]
[426109356,1782147047000,-500.0,0.00016438,2]
[426109360,1782147047000,-500.0,0.00016438,2]
[426109358,1782147047000,-500.0,0.00016438,2]
[426109368,1782147047000,-500.0,0.00016438,2]
[426109366,1782147047000,-500.0,0.00016438,2]
[426109371,1782147047000,-500.0,0.00016438,2]
[426109374,1782147047000,-500.0,0.00016438,2]
[426109373,1782147047000,-500.0,0.00016438,2]
[426109378,1782147047000,-500.0,0.00016438,2]
[426109321,1782147047000,-500.0,0.00016438,2]
[426109352,1782147047000,-500.0,0.00016438,2]
[426109319,1782147047000,-500.0,0.00016438,2]
[426109262,1782147047000,-500.0,0.00016438,2]
[426109317,1782147047000,-238.57361998,0.00016438,2]
[426109264,1782147047000,-500.0,0.00016438,2]
[426109377,1782147047000,-500.0,0.00016438,2]
[426109268,1782147047000,-500.0,0.00016438,2]
[426109266,1782147047000,-500.0,0.00016438,2]
[426109281,1782147047000,-540.31,0.00016438,2]
[426109285,1782147047000,-500.0,0.00016438,2]
[426109283,1782147047000,-500.0,0.00016438,2]
[426109270,1782147047000,-500.0,0.00016438,2]
[426109287,1782147047000,-500.0,0.00016438,2]
[426109288,1782147047000,-500.0,0.00016438,2]
[426109294,1782147047000,-500.0,0.00016438,2]
[426109290,1782147047000,-516.27015923,0.00016438,2]
[426109279,1782147047000,-500.0,0.00016438,2]
[426109313,1782147047000,-517.10420175,0.00016438,2]
[426109272,1782147047000,-500.0,0.00016438,2]
[426109277,1782147047000,-464.74706679,0.00016438,2]
[426109275,1782147047000,-500.0,0.00016438,2]
[426109274,1782147047000,-500.0,0.00016438,2]
[426109299,1782147047000,-500.0,0.00016438,2]
[426109297,1782147047000,-500.0,0.00016438,2]
[426109302,1782147047000,-500.0,0.00016438,2]
[426109296,1782147047000,-500.0,0.00016438,2]
[426109303,1782147047000,-503.86304401,0.00016438,2]
[426109305,1782147047000,-500.0,0.00016438,2]
[426109307,1782147047000,-500.0,0.00016438,2]
[426109309,1782147047000,-500.0,0.00016438,2]
[426109315,1782147047000,-500.0,0.00016438,2]
[426109311,1782147047000,-511.47153597,0.00016438,2]
[426109292,1782147047000,-500.0,0.00016438,2]
[426109382,1782147047000,-500.0,0.00016438,2]
[426109388,1782147047000,-500.0,0.00016438,2]
[426109384,1782147047000,-500.0,0.00016438,2]
[426109453,1782147047000,-500.0,0.00016712,2]
[426109448,1782147047000,-500.0,0.00016712,2]
[426109444,1782147047000,-500.0,0.00016712,2]
[426109463,1782147047000,-500.0,0.00016712,2]
[426109465,1782147047000,-500.0,0.00016712,2]
[426109457,1782147047000,-500.0,0.00016712,2]
[426109455,1782147047000,-500.0,0.00016712,2]
[426109459,1782147047000,-500.0,0.00016712,2]
[426109467,1782147047000,-500.0,0.00016712,2]
[426109461,1782147047000,-500.0,0.00016712,2]
[426109471,1782147047000,-500.0,0.00016712,2]
[426109473,1782147047000,-500.0,0.00016712,2]
[426109477,1782147047000,-500.0,0.00016712,2]
[426109469,1782147047000,-500.0,0.00016712,2]
[426109481,1782147047000,-500.0,0.00016712,2]
[426109486,1782147047000,-500.0,0.00016712,2]
[426109484,1782147047000,-500.0,0.00016712,2]
[426109479,1782147047000,-500.0,0.00016712,2]
[426109488,1782147047000,-500.0,0.00016712,2]
[426109490,1782147047000,-500.0,0.00016712,2]
[426109492,1782147047000,-500.0,0.00016712,2]
[426109494,1782147047000,-500.0,0.00016712,2]
[426109504,1782147047000,-471.87964356,0.00016712,2]
[426109498,1782147047000,-500.0,0.00016712,2]
[426109496,1782147047000,-500.0,0.00016712,2]
[426109502,1782147047000,-500.0,0.00016712,2]
[426109380,1782147047000,-500.0,0.00016438,2]
[426109449,1782147047000,-500.0,0.00016712,2]
[426109451,1782147047000,-194.27,0.00016712,2]
[426109475,1782147047000,-500.0,0.00016712,2]
[426109436,1782147047000,-627.15513892,0.00016712,2]
[426109445,1782147047000,-500.0,0.00016712,2]
[426109387,1782147047000,-500.0,0.00016438,2]
[426109500,1782147047000,-500.0,0.00016712,2]
[426109392,1782147047000,-500.0,0.00016438,2]
[426109398,1782147047000,-500.0,0.00016438,2]
[426109397,1782147047000,-500.0,0.00016438,2]
[426109394,1782147047000,-500.0,0.00016438,2]
[426109404,1782147047000,-500.0,0.00016438,2]
[426109400,1782147047000,-507.12650838,0.00016438,2]
[426109402,1782147047000,-500.0,0.00016438,2]
[426109406,1782147047000,-500.0,0.00016438,2]
[426109412,1782147047000,-500.0,0.00016438,2]
[426109408,1782147047000,-500.0,0.00016438,2]
[426109410,1782147047000,-500.0,0.00016438,2]
[426109390,1782147047000,-500.0,0.00016438,2]
[426109416,1782147047000,-500.0,0.00016438,2]
[426109414,1782147047000,-1650.96,0.00016438,2]
[426109442,1782147047000,-500.0,0.00016712,2]
[426109440,1782147047000,-500.0,0.00016712,2]
[426109432,1782147047000,-626.52631344,0.00016712,2]
[426109438,1782147047000,-500.0,0.00016712,2]
[426109428,1782147047000,-500.0,0.00016712,2]
[426109434,1782147047000,-380.26,0.00016712,2]
[426109426,1782147047000,-162.9161329,0.00016612,2]
[426109424,1782147047000,-157.786633,0.00016535,2]
[426109418,1782147047000,-500.0,0.00016438,2]
[426109422,1782147047000,-500.0,0.00016438,2]
[426109420,1782147047000,-500.0,0.00016438,2]
[426109430,1782147047000,-329.45,0.00016712,2]
[426109596,1782147048000,-500.0,0.00016986,2]
[426109594,1782147048000,-500.0,0.00016986,2]
[426109590,1782147048000,-500.0,0.00016986,2]
[426109572,1782147048000,-500.0,0.00016986,2]
[426109586,1782147048000,-500.0,0.00016986,2]
[426109574,1782147048000,-500.0,0.00016986,2]
[426109582,1782147048000,-500.0,0.00016986,2]
[426109578,1782147048000,-500.0,0.00016986,2]
[426109576,1782147048000,-500.0,0.00016986,2]
[426109580,1782147048000,-500.0,0.00016986,2]
[426109588,1782147048000,-500.0,0.00016986,2]
[426109592,1782147048000,-500.0,0.00016986,2]
[426109598,1782147048000,-500.0,0.00016986,2]
[426109610,1782147048000,-500.0,0.00016986,2]
[426109604,1782147048000,-500.0,0.00016986,2]
[426109609,1782147048000,-500.0,0.00016986,2]
[426109602,1782147048000,-500.0,0.00016986,2]
[426109606,1782147048000,-500.0,0.00016986,2]
[426109621,1782147048000,-500.0,0.00016986,2]
[426109613,1782147048000,-500.0,0.00016986,2]
[426109615,1782147048000,-500.0,0.00016986,2]
[426109617,1782147048000,-234.45,0.00016986,2]
[426109619,1782147048000,-500.0,0.00016986,2]
[426109633,1782147048000,-500.0,0.00016986,2]
[426109623,1782147048000,-500.0,0.00016986,2]
[426109625,1782147048000,-500.0,0.00016986,2]
[426109568,1782147048000,-500.0,0.00016986,2]
[426109600,1782147048000,-500.0,0.00016986,2]
[426109570,1782147048000,-500.0,0.00016986,2]
[426109506,1782147048000,-500.0,0.00016712,2]
[426109560,1782147048000,-500.0,0.00016986,2]
[426109508,1782147048000,-500.0,0.00016712,2]
[426109509,1782147048000,-500.0,0.00016712,2]
[426109513,1782147048000,-500.0,0.00016712,2]
[426109511,1782147048000,-500.0,0.00016712,2]
[426109515,1782147048000,-500.0,0.00016712,2]
[426109517,1782147048000,-500.0,0.00016712,2]
[426109521,1782147048000,-500.0,0.00016712,2]
[426109519,1782147048000,-500.0,0.00016712,2]
[426109523,1782147048000,-500.0,0.00016712,2]
[426109528,1782147048000,-500.0,0.00016712,2]
[426109526,1782147048000,-500.0,0.00016712,2]
[426109530,1782147048000,-500.0,0.00016712,2]
[426109532,1782147048000,-500.0,0.00016712,2]
[426109566,1782147048000,-500.0,0.00016986,2]
[426109536,1782147048000,-500.0,0.00016712,2]
[426109542,1782147048000,-500.0,0.00016712,2]
[426109534,1782147048000,-500.0,0.00016712,2]
[426109538,1782147048000,-500.0,0.00016712,2]
[426109544,1782147048000,-500.0,0.00016712,2]
[426109546,1782147048000,-1650.96,0.00016712,2]
[426109548,1782147048000,-500.0,0.00016712,2]
[426109550,1782147048000,-500.0,0.00016712,2]
[426109552,1782147048000,-500.0,0.00016712,2]
[426109554,1782147048000,-500.0,0.00016986,2]
[426109564,1782147048000,-500.0,0.00016986,2]
[426109556,1782147048000,-500.0,0.00016986,2]
[426109562,1782147048000,-500.0,0.00016986,2]
[426109558,1782147048000,-500.0,0.00016986,2]
[426109540,1782147048000,-500.0,0.00016712,2]
[426109635,1782147048000,-500.0,0.00016986,2]
[426109631,1782147048000,-500.0,0.00016986,2]
[426109627,1782147048000,-500.0,0.00016986,2]
[426109713,1782147048000,-500.0,0.0001726,2]
[426109717,1782147048000,-500.0,0.0001726,2]
[426109721,1782147048000,-500.0,0.0001726,2]
[426109705,1782147048000,-500.0,0.0001726,2]
[426109709,1782147048000,-500.0,0.0001726,2]
[426109703,1782147048000,-500.0,0.0001726,2]
[426109707,1782147048000,-500.0,0.0001726,2]
[426109710,1782147048000,-542.34553342,0.0001726,2]
[426109723,1782147048000,-500.0,0.0001726,2]
[426109725,1782147048000,-500.0,0.0001726,2]
[426109727,1782147048000,-500.0,0.0001726,2]
[426109729,1782147048000,-500.0,0.0001726,2]
[426109739,1782147048000,-643.67,0.0001726,2]
[426109719,1782147048000,-500.0,0.0001726,2]
[426109747,1782147048000,-500.0,0.0001726,2]
[426109743,1782147048000,-500.0,0.0001726,2]
[426109741,1782147048000,-500.0,0.0001726,2]
[426109731,1782147048000,-500.0,0.0001726,2]
[426109751,1782147048000,-500.0,0.0001726,2]
[426109735,1782147048000,-500.0,0.0001726,2]
[426109749,1782147048000,-500.0,0.0001726,2]
[426109733,1782147048000,-500.0,0.0001726,2]
[426109737,1782147048000,-500.0,0.0001726,2]
[426109753,1782147048000,-500.0,0.0001726,2]
[426109755,1782147048000,-500.0,0.0001726,2]
[426109757,1782147048000,-345.78228781,0.0001726,2]
[426109640,1782147048000,-500.0,0.00016986,2]
[426109759,1782147048000,-500.0,0.0001726,2]
[426109745,1782147048000,-500.0,0.0001726,2]
[426109715,1782147048000,-500.0,0.0001726,2]
[426109761,1782147048000,-198.12953097,0.0001726,2]
[426109699,1782147048000,-170.19663286,0.0001726,2]
[426109701,1782147048000,-415.79,0.0001726,2]
[426109642,1782147048000,-500.0,0.00016986,2]
[426109645,1782147048000,-500.0,0.00016986,2]
[426109649,1782147048000,-500.0,0.00016986,2]
[426109651,1782147048000,-500.0,0.00016986,2]
[426109653,1782147048000,-500.0,0.00016986,2]
[426109655,1782147048000,-500.0,0.00016986,2]
[426109647,1782147048000,-500.0,0.00016986,2]
[426109657,1782147048000,-500.0,0.00016986,2]
[426109667,1782147048000,-300.0,0.00017044,2]
[426109659,1782147048000,-1650.96,0.00016986,2]
[426109665,1782147048000,-500.0,0.00016986,2]
[426109669,1782147048000,-300.0,0.00017044,2]
[426109661,1782147048000,-500.0,0.00016986,2]
[426109629,1782147048000,-500.0,0.00016986,2]
[426109672,1782147048000,-300.0,0.00017044,2]
[426109697,1782147048000,-233.49391662,0.0001726,2]
[426109691,1782147048000,-300.0,0.00017044,2]
[426109686,1782147048000,-300.0,0.00017044,2]
[426109688,1782147048000,-300.0,0.00017044,2]
[426109663,1782147048000,-500.0,0.00016986,2]
[426109684,1782147048000,-300.0,0.00017044,2]
[426109695,1782147048000,-402.90828301,0.0001726,2]
[426109674,1782147048000,-300.0,0.00017044,2]
[426109682,1782147048000,-300.0,0.00017044,2]
[426109678,1782147048000,-300.0,0.00017044,2]
[426109680,1782147048000,-300.0,0.00017044,2]
[426109676,1782147048000,-300.0,0.00017044,2]
[426109693,1782147048000,-300.0,0.00017044,2]
[426109845,1782147049000,-500.0,0.00017534,2]
[426109837,1782147049000,-500.0,0.00017534,2]
[426109851,1782147049000,-500.0,0.00017534,2]
[426109847,1782147049000,-500.0,0.00017534,2]
[426109823,1782147049000,-500.0,0.00017534,2]